fUST/lending_fUST_20241108
["ID","MTS","AMOUNT","RATE_DAILY","PERIOD"]
[341664002,1731073839257,-500.0,0.00022236,2]
[341664003,1731073839267,-500.0,0.00022236,2]
[341664004,1731073839276,-1869.47,0.00022236,2]
[341664005,1731073839286,-500.0,0.00022236,2]
[341664006,1731073839393,-500.0,0.00022236,2]
[341664007,1731073839403,-500.0,0.00022236,2]
[341664008,1731073839412,-500.0,0.00022236,2]
[341664009,1731073839421,-500.0,0.00022236,2]
[341664010,1731073839431,-500.0,0.00022236,2]
[341664011,1731073839440,-5943.8,0.00022236,2]
[341664012,1731073839449,-2336.0,0.00022236,2]
[341664013,1731073839458,-500.0,0.00022236,2]
[341664014,1731073839468,-4676.24,0.00022236,2]
[341664015,1731073839477,-500.0,0.00022236,2]
[341664016,1731073839487,-500.0,0.00022236,2]
[341664017,1731073839496,-500.0,0.00022236,2]
[341664018,1731073839506,-500.0,0.00022236,2]
[341664019,1731073839515,-500.0,0.00022236,2]
[341664020,1731073839524,-500.0,0.00022236,2]
[341664021,1731073839534,-500.0,0.00022236,2]
[341664022,1731073839543,-350.45566383,0.00022236,2]
[341664023,1731073839553,-500.0,0.00022236,2]
[341664024,1731073839562,-575.59843781,0.00022236,2]
[341664025,1731073839571,-500.0,0.00022236,2]
[341664026,1731073839581,-500.0,0.00022236,2]
[341664027,1731073839590,-500.0,0.00022236,2]
[341664028,1731073839599,-500.0,0.00022236,2]
[341664029,1731073839609,-500.0,0.00022236,2]
[341664030,1731073839619,-500.0,0.00022236,2]
[341664031,1731073839629,-500.0,0.00022236,2]
[341664032,1731073839639,-500.0,0.00022236,2]
[341664033,1731073839648,-500.0,0.00022236,2]
[341664034,1731073839657,-500.0,0.00022236,2]
[341664035,1731073839667,-500.0,0.00022236,2]
[341664036,1731073839677,-500.0,0.00022236,2]
[341664037,1731073839686,-500.0,0.00022236,2]
[341664038,1731073839695,-500.0,0.00022236,2]
[341664039,1731073839705,-500.0,0.00022236,2]
[341664040,1731073839714,-500.0,0.00022236,2]
[341664041,1731073839724,-621.3355164,0.00022236,2]
[341664042,1731073839733,-500.0,0.00022236,2]
[341664043,1731073839743,-625.78,0.00022236,2]
[341664044,1731073839753,-506.58745277,0.00022236,2]
[341664045,1731073839762,-500.0,0.00022236,2]
[341664046,1731073839773,-500.0,0.00022236,2]
[341664047,1731073839782,-500.0,0.00022237,2]
[341664048,1731073839791,-500.0,0.00022237,2]
[341664049,1731073839801,-500.0,0.00022237,2]
[341664050,1731073839810,-221.96880814,0.00022237,2]
[341664051,1731073839822,-500.0,0.00022237,2]
[341664052,1731073839833,-518.99533167,0.00022237,2]
[341664053,1731073839842,-506.33631443,0.00022237,2]
[341664054,1731073839853,-500.0,0.00022237,2]
[341664055,1731073839864,-637.77403834,0.00022237,2]
[341664056,1731073839873,-500.0,0.00022237,2]
[341664057,1731073839883,-500.0,0.00022237,2]
[341664058,1731073839894,-500.0,0.00022237,2]
[341664059,1731073839903,-516.74791874,0.00022237,2]
[341664060,1731073839913,-500.0,0.00022237,2]
[341664061,1731073839923,-500.0,0.00022237,2]
[341664062,1731073839933,-500.0,0.00022237,2]
[341664063,1731073839943,-500.0,0.00022237,2]
[341664064,1731073839952,-500.0,0.00022237,2]
[341664065,1731073839962,-500.0,0.00022237,2]
[341664066,1731073839972,-1018.22,0.00022237,2]
[341664067,1731073839982,-444.21753726,0.00022237,2]
[341664068,1731073839992,-500.0,0.00022237,2]
[341664069,1731073840002,-500.0,0.00022237,2]
[341664070,1731073840011,-500.0,0.00022237,2]
[341664071,1731073840020,-500.0,0.00022237,2]
[341664072,1731073840030,-500.0,0.00022237,2]
[341664073,1731073840046,-344.15260463,0.00022237,2]
[341664074,1731073840055,-500.0,0.00022237,2]
[341664075,1731073840065,-500.0,0.00022237,2]
[341664076,1731073840074,-500.0,0.00022237,2]
[341664077,1731073840086,-500.0,0.00022237,2]
[341664078,1731073840095,-393.60869827,0.00022237,2]
[341664079,1731073840105,-503.36798588,0.00022237,2]
[341664080,1731073840114,-500.0,0.00022237,2]
[341664081,1731073840123,-500.0,0.00022237,2]
[341664082,1731073840133,-500.0,0.00022237,2]
[341664083,1731073840143,-500.0,0.00022237,2]
[341664084,1731073840152,-578.69,0.00022237,2]
[341664085,1731073840162,-500.0,0.00022237,2]
[341664086,1731073840171,-530.26643491,0.00022237,2]
[341664087,1731073840180,-500.0,0.00022237,2]
[341664088,1731073840189,-500.0,0.00022237,2]
[341664089,1731073840199,-550.01430554,0.00022237,2]
[341664090,1731073840209,-500.0,0.00022237,2]
[341664091,1731073840219,-500.0,0.00022237,2]
[341664092,1731073840228,-500.0,0.00022237,2]
[341664093,1731073840238,-500.0,0.00022237,2]
[341664094,1731073840247,-500.0,0.00022237,2]
[341664095,1731073840256,-500.0,0.00022237,2]
[341664096,1731073840265,-500.0,0.00022237,2]
[341664097,1731073840275,-500.0,0.00022237,2]
[341664098,1731073840284,-500.0,0.00022237,2]
[341664099,1731073840294,-556.77,0.00022237,2]
[341664100,1731073840302,-500.0,0.00022237,2]
[341664101,1731073840312,-943.22,0.00022237,2]
[341664102,1731073840321,-500.0,0.00022237,2]
[341664103,1731073840330,-500.0,0.00022237,2]
[341664104,1731073840339,-500.0,0.00022237,2]
[341664105,1731073840349,-500.0,0.00022237,2]
[341664106,1731073840358,-500.0,0.00022237,2]
[341664107,1731073840378,-500.0,0.00022237,2]
[341664108,1731073840388,-1302.08,0.00022237,2]
[341664109,1731073840398,-596.37957882,0.00022237,2]
[341664110,1731073840408,-500.0,0.00022237,2]
[341664111,1731073840417,-151.11217723,0.00022237,2]
[341664112,1731073840427,-510.57547254,0.00022237,2]
[341664113,1731073840437,-500.0,0.00022237,2]
[341664114,1731073840447,-500.0,0.00022237,2]
[341664115,1731073840456,-500.0,0.00022237,2]
[341664116,1731073840467,-526.44903685,0.00022237,2]
[341664117,1731073840477,-947.75,0.00022237,2]
[341664118,1731073840487,-514.98937248,0.00022237,2]
[341664119,1731073840497,-527.61764638,0.00022237,2]
[341664120,1731073840508,-517.00703044,0.00022237,2]
[341664121,1731073840517,-500.0,0.00022237,2]
[341664122,1731073840527,-500.0,0.00022237,2]
[341664123,1731073840537,-500.0,0.00022237,2]
[341664124,1731073840548,-500.0,0.00022237,2]
[341664125,1731073840559,-500.0,0.00022237,2]
[341664126,1731073840569,-500.0,0.00022237,2]
[341664127,1731073840580,-501.06394467,0.00022237,2]
[341664128,1731073840591,-500.0,0.00022237,2]
[341664129,1731073840601,-500.0,0.00022237,2]
[341664130,1731073840611,-500.0,0.00022237,2]
[341664131,1731073840621,-500.0,0.00022237,2]
[341664132,1731073840631,-502.41505175,0.00022273,2]
[341664133,1731073840640,-500.0,0.00022273,2]
[341664134,1731073840650,-500.99482455,0.00022273,2]
[341664135,1731073840660,-500.88081236,0.00022273,2]
[341664136,1731073840670,-500.0,0.00022273,2]
[341664137,1731073840681,-500.0,0.00022273,2]
[341664138,1731073840691,-500.0,0.00022273,2]
[341664139,1731073840700,-500.0,0.00022273,2]
[341664140,1731073840710,-502.07502216,0.00022273,2]
[341664141,1731073840721,-622.68721089,0.00022273,2]
[341664142,1731073840731,-500.0,0.00022273,2]
[341664143,1731073840742,-150.112233,0.000223,8]
[341664144,1731073840752,-500.0,0.00022464,2]
[341664145,1731073840762,-158.61493869,0.00022464,2]
[341664146,1731073840774,-180.97078193,0.00022464,2]
[341664147,1731073840785,-500.0,0.00022464,2]
[341664148,1731073840795,-487.54972763,0.00022464,2]
[341664149,1731073840804,-377.81287972,0.00022464,2]
[341664150,1731073840818,-500.0,0.00022465,2]
[341664151,1731073840829,-500.0,0.00022465,2]
[341664152,1731073840838,-500.0,0.00022465,2]
[341664153,1731073840848,-500.0,0.0002251,2]
[341664154,1731073840859,-500.0,0.0002251,2]
[341664155,1731073840871,-440.97132462,0.0002251,2]
[341664156,1731073840881,-500.0,0.0002251,2]
[341664157,1731073840894,-1185.24,0.0002251,2]
[341664158,1731073840903,-500.0,0.0002251,2]
[341664159,1731073840912,-500.0,0.0002251,2]
[341664160,1731073840922,-500.0,0.0002251,2]
[341664161,1731073840931,-1869.47,0.0002251,2]
[341664162,1731073840940,-500.0,0.0002251,2]
[341664163,1731073840950,-500.0,0.0002251,2]
[341664164,1731073840960,-500.0,0.0002251,2]
[341664165,1731073840970,-5943.8,0.0002251,2]
[341664166,1731073840980,-2336.0,0.0002251,2]
[341664167,1731073840991,-4676.24,0.0002251,2]
[341664168,1731073841001,-500.0,0.0002251,2]
[341664169,1731073841011,-500.0,0.0002251,2]
[341664170,1731073841021,-500.0,0.0002251,2]
[341664171,1731073841030,-500.0,0.0002251,2]
[341664172,1731073841039,-500.0,0.0002251,2]
[341664173,1731073841050,-500.0,0.0002251,2]
[341664174,1731073841060,-500.0,0.0002251,2]
[341664175,1731073841069,-500.0,0.0002251,2]
[341664176,1731073841079,-500.0,0.0002251,2]
[341664177,1731073841089,-500.0,0.0002251,2]
[341664178,1731073841098,-500.0,0.0002251,2]
[341664179,1731073841108,-500.0,0.0002251,2]
[341664180,1731073841118,-500.0,0.0002251,2]
[341664181,1731073841128,-500.0,0.0002251,2]
[341664182,1731073841138,-500.0,0.0002251,2]
[341664183,1731073841148,-500.0,0.0002251,2]
[341664184,1731073841157,-625.78,0.0002251,2]
[341664185,1731073841166,-1018.22,0.00022511,2]
[341664186,1731073841177,-512.19934898,0.00022511,2]
[341664187,1731073841186,-500.0,0.00022511,2]
[341664188,1731073841196,-578.69,0.00022511,2]
[341664189,1731073841206,-500.0,0.00022511,2]
[341664190,1731073841216,-500.0,0.00022511,2]
[341664191,1731073841227,-500.0,0.00022511,2]
[341664192,1731073841237,-500.0,0.00022511,2]
[341664193,1731073841247,-556.77,0.00022511,2]
[341664194,1731073841257,-943.22,0.00022511,2]
[341664195,1731073841267,-1302.08,0.00022511,2]
[341664196,1731073841279,-500.0,0.00022511,2]
[341664197,1731073841289,-500.0,0.00022511,2]
[341664198,1731073841299,-947.75,0.00022511,2]
[341664199,1731073841310,-500.0,0.00022511,2]
[341664200,1731073841319,-500.0,0.00022511,2]
[341664201,1731073841329,-500.0,0.00022511,2]
[341664202,1731073841339,-242.3951252,0.00022511,2]
[341664203,1731073841348,-500.0,0.00022511,2]
[341664204,1731073841359,-500.0,0.00022573,2]
[341664205,1731073841369,-500.0,0.00022648,2]
[341664206,1731073841378,-500.0,0.00022739,2]
[341664207,1731073841388,-500.0,0.00022739,2]
[341664208,1731073841398,-176.017139,0.00022773,2]
[341664209,1731073841408,-500.0,0.00022783,2]
[341664210,1731073841419,-500.0,0.00022783,2]
[341664211,1731073841428,-500.0,0.00022784,2]
[341664212,1731073841438,-500.0,0.00022784,2]
[341664213,1731073841448,-212.89393205,0.00022784,2]
[341664214,1731073841457,-1185.24,0.00022784,2]
[341664215,1731073841467,-500.0,0.00022784,2]
[341664216,1731073841477,-500.0,0.00022784,2]
[341664217,1731073841487,-1869.47,0.00022784,2]
[341664218,1731073841496,-500.0,0.00022784,2]
[341664219,1731073841506,-5943.8,0.00022784,2]
[341664220,1731073841516,-2336.0,0.00022784,2]
[341664221,1731073841526,-4676.24,0.00022784,2]
[341664222,1731073841538,-500.0,0.00022784,2]
[341664223,1731073841549,-500.0,0.00022784,2]
[341664224,1731073841559,-500.0,0.00022784,2]
[341664225,1731073841569,-500.0,0.00022784,2]
[341664226,1731073841579,-500.0,0.00022784,2]
[341664227,1731073841589,-500.0,0.00022784,2]
[341664228,1731073841599,-500.0,0.00022784,2]
[341664229,1731073841608,-500.0,0.00022784,2]
[341664230,1731073841618,-500.0,0.00022784,2]
[341664231,1731073841628,-495.42779697,0.00022784,2]
[341664232,1731073841639,-500.0,0.00022784,2]
[341664233,1731073841648,-500.0,0.00022784,2]
[341664234,1731073841658,-625.78,0.00022784,2]
[341664235,1731073841668,-1018.22,0.00022785,2]
[341664236,1731073841677,-592.08143046,0.00022785,2]
[341664237,1731073841687,-578.69,0.00022785,2]
[341664238,1731073841696,-500.0,0.00022785,2]
[341664239,1731073841707,-500.0,0.00022785,2]
[341664240,1731073841717,-500.0,0.00022785,2]
[341664241,1731073841727,-500.0,0.00022785,2]
[341664242,1731073841738,-556.77,0.00022785,2]
[341664243,1731073841748,-943.22,0.00022785,2]
[341664244,1731073841758,-1302.08,0.00022785,2]
[341664245,1731073841769,-272.09220424,0.00022785,2]
[341664246,1731073841779,-500.0,0.00022785,2]
[341664247,1731073841801,-947.75,0.00022785,2]
[341664248,1731073841816,-500.0,0.00022785,2]
[341664249,1731073841836,-500.0,0.00022785,2]
[341664250,1731073841852,-166.05576297,0.00022785,2]
[341664251,1731073841865,-150.112233,0.000228,10]
[341664252,1731073841877,-168.25626645,0.00022959,2]
[341664253,1731073841886,-548.45,0.00023,2]
[341664254,1731073841897,-500.0,0.00023013,2]
[341664255,1731073841906,-500.0,0.00023013,2]
[341664256,1731073841916,-500.0,0.00023039,2]
[341664257,1731073841926,-500.0,0.00023039,2]
[341664258,1731073841936,-500.0,0.00023039,2]
[341664259,1731073841946,-500.0,0.00023057,2]
[341664260,1731073841961,-500.0,0.00023058,2]
[341664261,1731073841976,-1185.24,0.00023058,2]
[341664262,1731073841987,-1869.47,0.00023058,2]
[341664263,1731073841997,-5943.8,0.00023058,2]
[341664264,1731073842006,-2336.0,0.00023058,2]
[341664265,1731073842016,-4676.24,0.00023058,2]
[341664266,1731073842026,-500.0,0.00023058,2]
[341664267,1731073842036,-500.0,0.00023058,2]
[341664268,1731073842149,-500.0,0.00023058,2]
[341664269,1731073842159,-500.0,0.00023058,2]
[341664270,1731073842168,-500.0,0.00023058,2]
[341664271,1731073842178,-500.0,0.00023058,2]
[341664272,1731073842187,-500.0,0.00023058,2]
[341664273,1731073842196,-500.0,0.00023058,2]
[341664274,1731073842206,-500.0,0.00023058,2]
[341664275,1731073842215,-500.0,0.00023058,2]
[341664276,1731073842225,-625.78,0.00023058,2]
[341664277,1731073842234,-1018.22,0.00023059,2]
[341664278,1731073842244,-578.69,0.00023059,2]
[341664279,1731073842253,-500.0,0.00023059,2]
[341664280,1731073842262,-500.0,0.00023059,2]
[341664281,1731073842272,-500.0,0.00023059,2]
[341664282,1731073842284,-500.0,0.00023059,2]
[341664283,1731073842293,-556.77,0.00023059,2]
[341664284,1731073842303,-943.22,0.00023059,2]
[341664285,1731073842314,-1302.08,0.00023059,2]
[341664286,1731073842324,-500.0,0.00023059,2]
[341664287,1731073842333,-947.75,0.00023059,2]
[341664288,1731073842344,-500.0,0.00023059,2]
[341664289,1731073842354,-500.0,0.00023059,2]
[341664290,1731073842363,-420.0,0.00023071,2]
[341664291,1731073842373,-500.0,0.00023103,2]
[341664292,1731073842384,-251.34457677,0.00023103,2]
[341664293,1731073842394,-505.05507572,0.00023103,2]
[341664294,1731073842403,-152.22,0.00023103,2]
[341664295,1731073842412,-500.0,0.00023103,2]
[341664296,1731073842421,-500.0,0.00023103,2]
[341664297,1731073842431,-500.0,0.00023103,2]
[341664298,1731073842440,-500.0,0.00023103,2]
[341664299,1731073842449,-500.0,0.00023103,2]
[341664300,1731073842458,-500.0,0.00023103,2]
[341664301,1731073842468,-150.112233,0.000232,5]
[341664302,1731073842477,-500.0,0.00023287,2]
[341664303,1731073842487,-500.0,0.00023332,2]
[341664304,1731073842496,-1185.24,0.00023332,2]
[341664305,1731073842506,-500.0,0.00023332,2]
[341664306,1731073842515,-1869.47,0.00023332,2]
[341664307,1731073842525,-5943.8,0.00023332,2]
[341664308,1731073842534,-2336.0,0.00023332,2]
[341664309,1731073842544,-4676.24,0.00023332,2]
[341664310,1731073842554,-500.0,0.00023332,2]
[341664311,1731073842563,-500.0,0.00023332,2]
[341664312,1731073842573,-500.0,0.00023332,2]
[341664313,1731073842583,-500.0,0.00023332,2]
[341664314,1731073842592,-500.0,0.00023332,2]
[341664315,1731073842602,-500.0,0.00023332,2]
[341664316,1731073842611,-500.0,0.00023332,2]
[341664317,1731073842621,-500.0,0.00023332,2]
[341664318,1731073842631,-487.70654853,0.00023332,2]
[341664319,1731073842640,-500.0,0.00023332,2]
[341664320,1731073842650,-566.46822756,0.00023332,2]
[341664321,1731073842659,-625.78,0.00023332,2]
[341664322,1731073842669,-1018.22,0.00023333,2]
[341664323,1731073842679,-578.69,0.00023333,2]
[341664325,1731073842688,-500.0,0.00023333,2]
[341664326,1731073842698,-500.0,0.00023333,2]
[341664327,1731073842707,-500.0,0.00023333,2]
[341664328,1731073842717,-500.0,0.00023333,2]
[341664329,1731073842727,-556.77,0.00023333,2]
[341664330,1731073842737,-943.22,0.00023333,2]
[341664331,1731073842747,-1302.08,0.00023333,2]
[341664332,1731073842756,-434.16112857,0.00023333,2]
[341664333,1731073842765,-947.75,0.00023333,2]
[341664334,1731073842775,-500.0,0.00023333,2]
[341664335,1731073842789,-500.0,0.00023333,2]
[341664337,1731073842799,-420.0,0.00023335,2]
[341664338,1731073842809,-500.0,0.0002337,2]
[341664339,1731073842823,-300.29,0.00023377,2]
[341664340,1731073842833,-500.0,0.00023377,2]
[341664342,1731073842842,-501.14428624,0.00023377,2]
[341664344,1731073842851,-500.0,0.00023377,2]
[341664346,1731073842862,-500.0,0.00023561,2]
[341664348,1731073842871,-500.0,0.00023588,2]
[341664351,1731073842881,-504.32,0.00023596,3]
[341664353,1731073842891,-500.0,0.00023606,2]
[341664355,1731073842902,-1185.24,0.00023606,2]
[341664357,1731073842912,-1869.47,0.00023606,2]
[341664359,1731073842921,-5943.8,0.00023606,2]
[341664361,1731073842931,-2336.0,0.00023606,2]
[341664364,1731073842941,-4676.24,0.00023606,2]
[341664366,1731073842950,-500.0,0.00023606,2]
[341664367,1731073842959,-500.0,0.00023606,2]
[341664369,1731073842969,-500.0,0.00023606,2]
[341664371,1731073842979,-500.0,0.00023606,2]
[341664372,1731073842989,-500.0,0.00023606,2]
[341664373,1731073842998,-500.0,0.00023606,2]
[341664374,1731073843008,-234.67,0.00023606,2]
[341664375,1731073843018,-500.0,0.00023606,2]
[341664376,1731073843028,-625.78,0.00023606,2]
[341664377,1731073843041,-1018.22,0.00023607,2]
[341664378,1731073843050,-578.69,0.00023607,2]
[341664379,1731073843060,-500.0,0.00023607,2]
[341664380,1731073843070,-500.0,0.00023607,2]
[341664381,1731073843079,-500.0,0.00023607,2]
[341664382,1731073843088,-556.77,0.00023607,2]
[341664383,1731073843098,-943.22,0.00023607,2]
[341664384,1731073843108,-1302.08,0.00023607,2]
[341664385,1731073843119,-947.75,0.00023607,2]
[341664386,1731073843130,-500.0,0.00023607,2]
[341664387,1731073843140,-246.37244556,0.00023607,2]
[341664388,1731073843150,-176.017139,0.00023627,2]
[341664389,1731073843159,-1000.0,0.00023642,2]
[341664390,1731073843169,-1000.0,0.00023642,2]
[341664391,1731073843178,-500.0,0.0002365,2]
[341664392,1731073843188,-500.0,0.00023652,2]
[341664393,1731073843198,-500.54169878,0.00023654,2]
[341664395,1731073843208,-502.41234486,0.00023654,2]
[341664397,1731073843222,-150.112233,0.000237,8]
[341664399,1731073843232,-500.93042104,0.00023737,2]
[341664401,1731073843244,-502.02165473,0.00023761,2]
[341664403,1731073843255,-168.25626645,0.00023781,2]
[341664405,1731073843265,-12511.00969247,0.00023781,2]
[341664407,1731073843275,-366.59152522,0.00023782,2]
[341664409,1731073843285,-500.0,0.00023835,2]
[341664411,1731073843296,-500.0,0.0002388,2]
[341664413,1731073843305,-1185.24,0.0002388,2]
[341664415,1731073843315,-1869.47,0.0002388,2]
[341664417,1731073843324,-5943.8,0.0002388,2]
[341664419,1731073843333,-2336.0,0.0002388,2]
[341664421,1731073843343,-4676.24,0.0002388,2]
[341664423,1731073843354,-500.0,0.0002388,2]
[341664425,1731073843363,-500.0,0.0002388,2]
[341664427,1731073843373,-500.0,0.0002388,2]
[341664429,1731073843382,-500.0,0.0002388,2]
[341664431,1731073843392,-500.0,0.0002388,2]
[341664433,1731073843401,-500.0,0.0002388,2]
[341664435,1731073843410,-500.0,0.0002388,2]
[341664437,1731073843419,-625.78,0.0002388,2]
[341664439,1731073843429,-1018.22,0.00023881,2]
[341664441,1731073843439,-578.69,0.00023881,2]
[341664442,1731073843449,-500.0,0.00023881,2]
[341664444,1731073843458,-500.0,0.00023881,2]
[341664446,1731073843467,-500.0,0.00023881,2]
[341664448,1731073843478,-556.77,0.00023881,2]
[341664450,1731073843488,-943.22,0.00023881,2]
[341664452,1731073843498,-1302.08,0.00023881,2]
[341664454,1731073843507,-947.75,0.00023881,2]
[341664456,1731073843517,-500.0,0.00023881,2]
[341664458,1731073843526,-502.89685815,0.00023942,2]
[341664460,1731073843537,-500.0,0.00024109,2]
[341664462,1731073843547,-500.0,0.00024153,2]
[341664464,1731073843557,-500.0,0.00024154,2]
[341664466,1731073843566,-1185.24,0.00024154,2]
[341664468,1731073843577,-447.27424828,0.00024154,2]
[341664470,1731073843588,-1869.47,0.00024154,2]
[341664473,1731073843598,-5943.8,0.00024154,2]
[341664475,1731073843608,-2336.0,0.00024154,2]
[341664476,1731073843618,-4676.24,0.00024154,2]
[341664477,1731073843628,-500.0,0.00024154,2]
[341664478,1731073843639,-500.0,0.00024154,2]
[341664480,1731073843648,-500.0,0.00024154,2]
[341664482,1731073843659,-500.0,0.00024154,2]
[341664484,1731073843669,-500.0,0.00024154,2]
[341664486,1731073843679,-500.0,0.00024154,2]
[341664488,1731073843688,-500.0,0.00024154,2]
[341664490,1731073843698,-625.78,0.00024154,2]
[341664492,1731073843707,-151.0,0.00024154,7]
[341664494,1731073843717,-1018.22,0.00024155,2]
[341664496,1731073843726,-578.69,0.00024155,2]
[341664498,1731073843737,-500.0,0.00024155,2]
[341664500,1731073843746,-500.0,0.00024155,2]
[341664503,1731073843756,-500.0,0.00024155,2]
[341664504,1731073843766,-556.77,0.00024155,2]
[341664505,1731073843776,-943.22,0.00024155,2]
[341664506,1731073843788,-1302.08,0.00024155,2]
[341664507,1731073843798,-947.75,0.00024155,2]
[341664509,1731073843807,-500.0,0.00024155,2]
[341664511,1731073843820,-150.112233,0.000242,8]
[341664513,1731073843830,-500.0,0.00024383,2]
[341664515,1731073843839,-1000.0,0.00024409,2]
[341664516,1731073843849,-500.0,0.00024428,2]
[341664518,1731073843859,-1185.24,0.00024428,2]
[341664520,1731073843869,-1869.47,0.00024428,2]
[341664521,1731073843878,-5943.8,0.00024428,2]
[341664522,1731073843887,-2336.0,0.00024428,2]
[341664523,1731073843899,-4676.24,0.00024428,2]
[341664524,1731073843909,-500.0,0.00024428,2]
[341664525,1731073843920,-500.0,0.00024428,2]
[341664526,1731073843930,-500.0,0.00024428,2]
[341664527,1731073843940,-500.0,0.00024428,2]
[341664528,1731073843949,-500.0,0.00024428,2]
[341664529,1731073843958,-500.0,0.00024428,2]
[341664530,1731073843968,-640.4776018,0.00024428,2]
[341664531,1731073843977,-625.78,0.00024428,2]
[341664532,1731073843988,-1018.22,0.00024429,2]
[341664533,1731073843999,-578.69,0.00024429,2]
[341664534,1731073844008,-500.0,0.00024429,2]
[341664535,1731073844018,-500.0,0.00024429,2]
[341664536,1731073844027,-500.0,0.00024429,2]
[341664537,1731073844037,-556.77,0.00024429,2]
[341664538,1731073844046,-943.22,0.00024429,2]
[341664539,1731073844056,-1302.08,0.00024429,2]
[341664540,1731073844065,-947.75,0.00024429,2]
[341664541,1731073844074,-500.0,0.00024429,2]
[341664542,1731073844084,-151.0,0.00024429,7]
[341664543,1731073844093,-151.0,0.00024429,7]
[341664544,1731073844102,-151.0,0.00024429,7]
[341664545,1731073844111,-176.017139,0.00024482,2]
[341664546,1731073844122,-150.112233,0.000246,10]
[341664547,1731073844132,-168.25626645,0.00024602,2]
[341664548,1731073844142,-500.0,0.00024656,2]
[341664549,1731073844151,-507.74045192,0.00024657,2]
[341664550,1731073844161,-606.45459281,0.00024657,2]
[341664551,1731073844171,-507.27518845,0.00024657,2]
[341664552,1731073844181,-500.0,0.00024657,2]
[341664553,1731073844191,-500.0,0.00024657,2]
[341664554,1731073844201,-506.85053539,0.00024657,2]
[341664555,1731073844210,-507.65509799,0.00024657,2]
[341664556,1731073844219,-504.03135058,0.00024657,2]
[341664557,1731073844229,-500.0,0.00024657,2]
[341664558,1731073844239,-500.0,0.00024657,2]
[341664559,1731073844248,-500.0,0.00024657,2]
[341664560,1731073844257,-500.0,0.00024657,2]
[341664561,1731073844266,-500.0,0.00024657,2]
[341664562,1731073844276,-503.493079,0.00024657,2]
[341664563,1731073844289,-503.02956371,0.00024657,2]
[341664564,1731073844299,-500.0,0.00024657,2]
[341664565,1731073844309,-500.0,0.00024657,2]
[341664566,1731073844318,-150.0,0.00024658,2]
[341664567,1731073844328,-660.0,0.00024658,2]
[341664568,1731073844339,-500.0,0.00024658,2]
[341664569,1731073844350,-500.0,0.00024658,2]
[341664570,1731073844360,-500.0,0.00024658,2]
[341664571,1731073844370,-500.0,0.00024658,2]
[341664572,1731073844380,-500.0,0.00024658,2]
[341664574,1731073844390,-500.0,0.00024658,2]
[341664576,1731073844400,-500.0,0.00024658,2]
[341664578,1731073844410,-500.0,0.00024658,2]
[341664579,1731073844420,-500.0,0.00024658,2]
[341664580,1731073844430,-500.0,0.00024658,2]
[341664582,1731073844440,-351.76389191,0.00024658,2]
[341664584,1731073844450,-500.0,0.00024658,2]